[Event "*** Titled Tuesday Blitz"]
[Site "Chess.com"]
[Date "2021.03.09"]
[Round "10"]
[White "AlexeiShirov"]
[Black "GigaQuparadze"]
[Result "1-0"]
[WhiteElo "2870"]
[BlackElo "2946"]
[TimeControl "180+1"]
[EndTime "11:55:31 PST"]
[Termination "AlexeiShirov won by resignation"]

1. e4 {[%clk 0:03:00.9]} 1... c5 {[%clk 0:03:00.3]} 2. Nf3 {[%clk 0:03:00.8]}
2... e6 {[%clk 0:03:00.8]} 3. c3 {[%clk 0:03:01]} 3... d5 {[%clk 0:03:00.7]} 4.
e5 {[%clk 0:03:01.2]} 4... d4 {[%clk 0:03:00.6]} 5. Bd3 {[%clk 0:03:00.7]} 5...
Bd7 {[%clk 0:03:00.8]} 6. O-O {[%clk 0:02:59.2]} 6... Bc6 {[%clk 0:03:01.1]} 7.
Re1 {[%clk 0:02:57.2]} 7... Ne7 {[%clk 0:03:01.2]} 8. Be4 {[%clk 0:02:55.3]}
8... Ng6 {[%clk 0:03:01.1]} 9. cxd4 {[%clk 0:02:51.7]} 9... cxd4 {[%clk
0:03:01]} 10. d3 {[%clk 0:02:51.4]} 10... Bxe4 {[%clk 0:02:58.8]} 11. Rxe4
{[%clk 0:02:50.3]} 11... Nc6 {[%clk 0:02:59.3]} 12. Nbd2 {[%clk 0:02:48.8]}
12... Qd5 {[%clk 0:02:56.5]} 13. Qe2 {[%clk 0:02:45.9]} 13... Bc5 {[%clk
0:02:48.8]} 14. Nb3 {[%clk 0:02:45.2]} 14... Bb6 {[%clk 0:02:49]} 15. h4 {[%clk
0:02:38.7]} 15... h5 {[%clk 0:02:48.5]} 16. Bg5 {[%clk 0:02:37.3]} 16... a5
{[%clk 0:02:44.8]} 17. Nbd2 {[%clk 0:02:35.5]} 17... Bc7 {[%clk 0:02:41.8]} 18.
Nc4 {[%clk 0:02:17.8]} 18... b5 {[%clk 0:02:41.6]} 19. Nd6+ {[%clk 0:02:13.2]}
19... Bxd6 {[%clk 0:02:40.4]} 20. exd6 {[%clk 0:02:12.4]} 20... Qxd6 {[%clk
0:02:40.8]} 21. Bd2 {[%clk 0:02:10.4]} 21... O-O-O {[%clk 0:02:38]} 22. Ng5
{[%clk 0:02:09.1]} 22... Rd7 {[%clk 0:02:34.9]} 23. Rc1 {[%clk 0:02:07.6]} 23...
Re8 {[%clk 0:02:18.2]} 24. Qxh5 {[%clk 0:01:58.6]} 24... Rh8 {[%clk 0:02:09.4]}
25. Qf3 {[%clk 0:01:56.6]} 25... Nxh4 {[%clk 0:02:00.6]} 26. Rxh4 {[%clk
0:01:54.6]} 1-0

[Event "*** Titled Tuesday Blitz"]
[Site "Chess.com"]
[Date "2021.03.09"]
[Round "10"]
[White "kirillshevchenko"]
[Black "francyIM"]
[Result "1-0"]
[WhiteElo "2828"]
[BlackElo "2610"]
[TimeControl "180+1"]
[EndTime "11:55:42 PST"]
[Termination "kirillshevchenko won by resignation"]

1. e4 {[%clk 0:02:56.7]} 1... e6 {[%clk 0:02:53.2]} 2. c4 {[%clk 0:02:55.9]}
2... d5 {[%clk 0:02:54.1]} 3. cxd5 {[%clk 0:02:56.1]} 3... exd5 {[%clk
0:02:47.9]} 4. Qb3 {[%clk 0:02:56.3]} 4... dxe4 {[%clk 0:02:46.3]} 5. Bc4 {[%clk
0:02:55.1]} 5... Qe7 {[%clk 0:02:45.5]} 6. Nc3 {[%clk 0:02:52.9]} 6... c6 {[%clk
0:02:44.1]} 7. d4 {[%clk 0:02:47.2]} 7... exd3+ {[%clk 0:02:42.4]} 8. Be3 {[%clk
0:02:46.8]} 8... Bg4 {[%clk 0:02:39]} 9. Nf3 {[%clk 0:02:35.4]} 9... Bxf3 {[%clk
0:02:31.1]} 10. gxf3 {[%clk 0:02:36.3]} 10... Na6 {[%clk 0:02:19]} 11. O-O-O
{[%clk 0:02:27.5]} 11... O-O-O {[%clk 0:02:13]} 12. Bxd3 {[%clk 0:02:22.8]}
12... Nc5 {[%clk 0:02:05.5]} 13. Bf5+ {[%clk 0:02:17.4]} 13... Ne6 {[%clk
0:01:59.6]} 14. Rxd8+ {[%clk 0:02:13]} 14... Kxd8 {[%clk 0:01:59.8]} 15. Rd1+
{[%clk 0:01:59]} 15... Kc8 {[%clk 0:01:59.8]} 16. Ne4 {[%clk 0:01:58.9]} 16...
Qe8 {[%clk 0:01:43.3]} 17. Bxa7 {[%clk 0:01:53.9]} 17... Nf6 {[%clk 0:01:43]}
18. Nxf6 {[%clk 0:01:47.2]} 18... gxf6 {[%clk 0:01:42.7]} 19. Bb6 {[%clk
0:01:47.7]} 19... Bh6+ {[%clk 0:01:42.3]} 20. Kb1 {[%clk 0:01:47.6]} 20... Qe7
{[%clk 0:01:42.8]} 21. Qa4 {[%clk 0:01:46.5]} 21... Bf4 {[%clk 0:01:40.7]} 22.
Qxf4 {[%clk 0:01:46.2]} 1-0

[Event "*** Titled Tuesday Blitz"]
[Site "Chess.com"]
[Date "2021.03.09"]
[Round "10"]
[White "InitiatingASC"]
[Black "Caracternin123"]
[Result "1-0"]
[WhiteElo "2435"]
[BlackElo "2564"]
[TimeControl "180+1"]
[EndTime "11:56:03 PST"]
[Termination "InitiatingASC won by resignation"]

1. d4 {[%clk 0:03:00.9]} 1... Nf6 {[%clk 0:02:59.5]} 2. Bf4 {[%clk 0:02:59.4]}
2... c5 {[%clk 0:02:57]} 3. e3 {[%clk 0:02:59.1]} 3... Qb6 {[%clk 0:02:56.7]} 4.
Nc3 {[%clk 0:02:55]} 4... Qxb2 {[%clk 0:02:57]} 5. Nb5 {[%clk 0:02:51.6]} 5...
Nd5 {[%clk 0:02:57.4]} 6. Rb1 {[%clk 0:02:23.1]} 6... Qxa2 {[%clk 0:02:45.5]} 7.
Nf3 {[%clk 0:02:17.4]} 7... Qa5+ {[%clk 0:02:42.3]} 8. Nd2 {[%clk 0:02:11.3]}
8... Na6 {[%clk 0:02:40.1]} 9. Bg3 {[%clk 0:02:08.6]} 9... Nc3 {[%clk
0:02:32.5]} 10. Nxc3 {[%clk 0:02:07.7]} 10... Qxc3 {[%clk 0:02:33.4]} 11. Bxa6
{[%clk 0:02:07]} 11... bxa6 {[%clk 0:02:32.6]} 12. Qf3 {[%clk 0:02:03.9]} 12...
cxd4 {[%clk 0:02:22.5]} 13. Qxa8 {[%clk 0:02:00.6]} 13... dxe3 {[%clk
0:02:22.9]} 14. fxe3 {[%clk 0:01:55.6]} 14... e6 {[%clk 0:02:18.1]} 15. O-O
{[%clk 0:01:45.8]} 15... Be7 {[%clk 0:02:08.8]} 16. Ne4 {[%clk 0:01:34]} 16...
Qc6 {[%clk 0:01:52.9]} 17. Rb8 {[%clk 0:01:20.1]} 17... O-O {[%clk 0:01:47.4]}
18. Qxc6 {[%clk 0:01:19.6]} 18... dxc6 {[%clk 0:01:48.1]} 19. Bd6 {[%clk
0:01:19.4]} 19... Bxd6 {[%clk 0:01:38.4]} 20. Nxd6 {[%clk 0:01:19.6]} 20... Bd7
{[%clk 0:01:39.1]} 21. Rxf8+ {[%clk 0:01:18.1]} 21... Kxf8 {[%clk 0:01:40]} 22.
Rxf7+ {[%clk 0:01:18.1]} 1-0

[Event "*** Titled Tuesday Blitz"]
[Site "Chess.com"]
[Date "2021.03.09"]
[Round "10"]
[White "schondeln"]
[Black "Ekose"]
[Result "0-1"]
[WhiteElo "2401"]
[BlackElo "2523"]
[TimeControl "180+1"]
[EndTime "11:56:20 PST"]
[Termination "Ekose won by resignation"]

1. e4 {[%clk 0:03:00.9]} 1... e6 {[%clk 0:02:58.7]} 2. b3 {[%clk 0:03:00.6]}
2... d5 {[%clk 0:02:58]} 3. Bb2 {[%clk 0:03:01.2]} 3... dxe4 {[%clk 0:02:57.8]}
4. Nc3 {[%clk 0:03:01.8]} 4... Nf6 {[%clk 0:02:57.9]} 5. Qe2 {[%clk 0:03:02.2]}
5... Be7 {[%clk 0:02:57.3]} 6. Nxe4 {[%clk 0:03:01.6]} 6... O-O {[%clk 0:02:57]}
7. Nf3 {[%clk 0:03:00.8]} 7... Nc6 {[%clk 0:02:56.1]} 8. O-O-O {[%clk
0:02:58.3]} 8... a5 {[%clk 0:02:56.1]} 9. a4 {[%clk 0:02:57.6]} 9... Nb4 {[%clk
0:02:56.1]} 10. Nxf6+ {[%clk 0:02:41.5]} 10... Bxf6 {[%clk 0:02:55.9]} 11. d4
{[%clk 0:02:41.9]} 11... c6 {[%clk 0:02:55]} 12. Qe4 {[%clk 0:02:33.9]} 12... b5
{[%clk 0:02:47.1]} 13. axb5 {[%clk 0:02:33]} 13... a4 {[%clk 0:02:47.3]} 14.
bxa4 {[%clk 0:02:25]} 14... Rxa4 {[%clk 0:02:44.6]} 15. Bd3 {[%clk 0:02:22.5]}
15... Nxd3+ {[%clk 0:02:37.6]} 16. Rxd3 {[%clk 0:02:21.7]} 16... cxb5 {[%clk
0:02:32.5]} 17. Rhd1 {[%clk 0:02:20.2]} 17... Qb6 {[%clk 0:02:08]} 18. Ne5
{[%clk 0:02:11.7]} 18... Bb7 {[%clk 0:01:55.1]} 19. Qf4 {[%clk 0:02:07.3]} 19...
Bxe5 {[%clk 0:01:49.3]} 20. Qxe5 {[%clk 0:02:04.9]} 20... Bd5 {[%clk 0:01:48.8]}
21. Kd2 {[%clk 0:01:26.9]} 21... Ra2 {[%clk 0:01:40.8]} 22. Rb1 {[%clk
0:01:19.7]} 22... Qa5+ {[%clk 0:01:33.1]} 23. Kd1 {[%clk 0:01:19]} 23... Rxb2
{[%clk 0:01:29]} 24. Rxb2 {[%clk 0:01:19.1]} 24... Qa1+ {[%clk 0:01:28.7]} 0-1

[Event "*** Titled Tuesday Blitz"]
[Site "Chess.com"]
[Date "2021.03.09"]
[Round "10"]
[White "SanchezKelvin"]
[Black "jens1102"]
[Result "1-0"]
[WhiteElo "2586"]
[BlackElo "2428"]
[TimeControl "180+1"]
[EndTime "11:56:25 PST"]
[Termination "SanchezKelvin won by resignation"]

1. d4 {[%clk 0:02:57.8]} 1... d5 {[%clk 0:02:59.6]} 2. c4 {[%clk 0:02:57.5]}
2... c5 {[%clk 0:03:00]} 3. cxd5 {[%clk 0:02:56.2]} 3... cxd4 {[%clk 0:02:59.6]}
4. Nf3 {[%clk 0:02:54]} 4... Nf6 {[%clk 0:02:57.3]} 5. Qxd4 {[%clk 0:02:49.9]}
5... Qxd5 {[%clk 0:02:56.6]} 6. Qxd5 {[%clk 0:02:49.6]} 6... Nxd5 {[%clk
0:02:57.5]} 7. e4 {[%clk 0:02:47.5]} 7... Nb4 {[%clk 0:02:57.4]} 8. Bb5+ {[%clk
0:02:45.4]} 8... N8c6 {[%clk 0:02:56.7]} 9. Na3 {[%clk 0:02:43.4]} 9... Bg4
{[%clk 0:02:53.3]} 10. Ne5 {[%clk 0:02:41.2]} 10... Be6 {[%clk 0:02:40.3]} 11.
Bd2 {[%clk 0:02:38]} 11... O-O-O {[%clk 0:02:28.2]} 12. Bxc6 {[%clk 0:02:27.4]}
12... Nxc6 {[%clk 0:02:26.2]} 13. Rc1 {[%clk 0:02:26.9]} 13... Bxa2 {[%clk
0:01:57.3]} 14. Nb5 {[%clk 0:02:02.2]} 14... a6 {[%clk 0:01:13.4]} 15. Na7+
{[%clk 0:01:56.3]} 15... Kc7 {[%clk 0:01:05.5]} 16. Naxc6 {[%clk 0:01:37.5]}
16... bxc6 {[%clk 0:01:04.8]} 17. Ba5+ {[%clk 0:01:37]} 17... Kc8 {[%clk
0:01:04.2]} 18. Rxc6+ {[%clk 0:01:34.6]} 18... Kb7 {[%clk 0:01:04.4]} 19. Bxd8
{[%clk 0:01:33.8]} 19... f6 {[%clk 0:01:04.9]} 20. Rc7+ {[%clk 0:01:33.8]} 20...
Kb8 {[%clk 0:01:05]} 21. Nc6+ {[%clk 0:01:33]} 1-0

[Event "*** Titled Tuesday Blitz"]
[Site "Chess.com"]
[Date "2021.03.09"]
[Round "10"]
[White "stoleriu"]
[Black "eljanov"]
[Result "0-1"]
[WhiteElo "2613"]
[BlackElo "2840"]
[TimeControl "180+1"]
[EndTime "11:56:28 PST"]
[Termination "eljanov won by resignation"]

1. e3 {[%clk 0:01:06.3]} 1... c5 {[%clk 0:02:56.3]} 2. b3 {[%clk 0:01:06.5]}
2... d5 {[%clk 0:02:55]} 3. Bb2 {[%clk 0:01:07.4]} 3... a6 {[%clk 0:02:54.7]} 4.
f4 {[%clk 0:01:08]} 4... Nc6 {[%clk 0:02:49.9]} 5. Nf3 {[%clk 0:01:08.9]} 5...
d4 {[%clk 0:02:50.2]} 6. Be2 {[%clk 0:01:08.3]} 6... g6 {[%clk 0:02:49.7]} 7.
O-O {[%clk 0:01:07.7]} 7... Bg7 {[%clk 0:02:50.1]} 8. a4 {[%clk 0:01:00]} 8...
Nh6 {[%clk 0:02:49.1]} 9. Na3 {[%clk 0:00:59.9]} 9... O-O {[%clk 0:02:45.5]} 10.
Qc1 {[%clk 0:00:56.3]} 10... e5 {[%clk 0:02:23.1]} 11. fxe5 {[%clk 0:00:52.1]}
11... Ng4 {[%clk 0:02:20.2]} 12. Nc4 {[%clk 0:00:47.6]} 12... Ngxe5 {[%clk
0:02:11.8]} 13. Nfxe5 {[%clk 0:00:42.5]} 13... Nxe5 {[%clk 0:02:12.7]} 14. exd4
{[%clk 0:00:42.8]} 14... cxd4 {[%clk 0:02:06.8]} 15. Ba3 {[%clk 0:00:40.4]}
15... Re8 {[%clk 0:02:05.5]} 16. d3 {[%clk 0:00:37.1]} 16... Nxc4 {[%clk
0:01:54.9]} 17. bxc4 {[%clk 0:00:35.3]} 17... Rxe2 {[%clk 0:01:55.3]} 18. Qf4
{[%clk 0:00:36.2]} 18... Be6 {[%clk 0:01:54.4]} 0-1

[Event "*** Titled Tuesday Blitz"]
[Site "Chess.com"]
[Date "2021.03.09"]
[Round "10"]
[White "NefeLV"]
[Black "HanSchut"]
[Result "0-1"]
[WhiteElo "1855"]
[BlackElo "2214"]
[TimeControl "180+1"]
[EndTime "11:56:53 PST"]
[Termination "HanSchut won by resignation"]

1. c4 {[%clk 0:02:19.4]} 1... Nf6 {[%clk 0:02:58.6]} 2. Nc3 {[%clk 0:02:18.4]}
2... d5 {[%clk 0:02:58.8]} 3. d4 {[%clk 0:02:18.9]} 3... g6 {[%clk 0:02:58.3]}
4. e3 {[%clk 0:02:19]} 4... Bg7 {[%clk 0:02:58.5]} 5. Nf3 {[%clk 0:02:19.4]}
5... O-O {[%clk 0:02:58.9]} 6. Bd3 {[%clk 0:02:19.6]} 6... c5 {[%clk 0:02:59.4]}
7. O-O {[%clk 0:02:18.7]} 7... cxd4 {[%clk 0:02:59.8]} 8. Nxd4 {[%clk
0:02:17.7]} 8... Nc6 {[%clk 0:03:00.2]} 9. cxd5 {[%clk 0:02:17.1]} 9... Nxd4
{[%clk 0:02:57.4]} 10. exd4 {[%clk 0:02:16]} 10... Nxd5 {[%clk 0:02:57.7]} 11.
Bg5 {[%clk 0:02:12.7]} 11... Nb6 {[%clk 0:02:40]} 12. Re1 {[%clk 0:01:58.2]}
12... Be6 {[%clk 0:02:34.4]} 13. Be3 {[%clk 0:01:42.3]} 13... Bxd4 {[%clk
0:02:27]} 14. Bxd4 {[%clk 0:01:42.7]} 14... Qxd4 {[%clk 0:02:27.4]} 15. Qf3
{[%clk 0:01:40.9]} 15... Rad8 {[%clk 0:02:19.6]} 16. Rad1 {[%clk 0:01:39.4]}
16... Bg4 {[%clk 0:02:01.6]} 17. Qxb7 {[%clk 0:01:26.3]} 17... Bxd1 {[%clk
0:02:00.4]} 18. Rxd1 {[%clk 0:01:27.2]} 18... Rd7 {[%clk 0:01:55.7]} 19. Qf3
{[%clk 0:01:23.7]} 19... Rfd8 {[%clk 0:01:45.6]} 20. h3 {[%clk 0:01:20]} 20...
Qf6 {[%clk 0:01:36.5]} 21. Qe4 {[%clk 0:01:14.9]} 21... Rd4 {[%clk 0:01:26.4]}
22. Qe3 {[%clk 0:01:13.1]} 22... Nd5 {[%clk 0:01:21.4]} 23. g3 {[%clk
0:00:53.8]} 23... Nxe3 {[%clk 0:01:19.3]} 0-1

[Event "*** Titled Tuesday Blitz"]
[Site "Chess.com"]
[Date "2021.03.09"]
[Round "10"]
[White "QuintilianoR"]
[Black "marianokar"]
[Result "1-0"]
[WhiteElo "2678"]
[BlackElo "2485"]
[TimeControl "180+1"]
[EndTime "11:57:04 PST"]
[Termination "QuintilianoR won by resignation"]

1. Nf3 {[%clk 0:03:00.9]} 1... d5 {[%clk 0:02:59.4]} 2. d4 {[%clk 0:02:59.7]}
2... Nf6 {[%clk 0:02:59.8]} 3. c4 {[%clk 0:03:00.2]} 3... c6 {[%clk 0:03:00.4]}
4. Nc3 {[%clk 0:03:00.6]} 4... dxc4 {[%clk 0:02:58]} 5. a4 {[%clk 0:03:00.5]}
5... Bf5 {[%clk 0:02:57.5]} 6. Ne5 {[%clk 0:03:00.4]} 6... e6 {[%clk 0:02:57.1]}
7. f3 {[%clk 0:02:58.7]} 7... Bb4 {[%clk 0:02:57]} 8. Nxc4 {[%clk 0:02:54.5]}
8... c5 {[%clk 0:02:56.6]} 9. dxc5 {[%clk 0:02:40.6]} 9... Qxd1+ {[%clk
0:02:41.1]} 10. Kxd1 {[%clk 0:02:41.5]} 10... Bxc5 {[%clk 0:02:32.7]} 11. e4
{[%clk 0:02:39.9]} 11... Bg6 {[%clk 0:02:31.9]} 12. Nb5 {[%clk 0:02:33.8]} 12...
Na6 {[%clk 0:02:29.8]} 13. Nbd6+ {[%clk 0:02:30]} 13... Ke7 {[%clk 0:02:29.7]}
14. Nxb7 {[%clk 0:02:28]} 14... Rhc8 {[%clk 0:01:11.5]} 15. Bf4 {[%clk 0:02:14]}
15... Bb4 {[%clk 0:00:50.3]} 16. Rc1 {[%clk 0:02:04.2]} 16... Nxe4 {[%clk
0:00:20.1]} 17. fxe4 {[%clk 0:01:57.1]} 17... Bxe4 {[%clk 0:00:21]} 18. Bd6+
{[%clk 0:01:48.1]} 18... Ke8 {[%clk 0:00:17.8]} 19. Bxb4 {[%clk 0:01:45.8]}
19... Nxb4 {[%clk 0:00:15.6]} 20. Ncd6+ {[%clk 0:01:44.7]} 1-0

[Event "*** Titled Tuesday Blitz"]
[Site "Chess.com"]
[Date "2021.03.09"]
[Round "10"]
[White "BahadirOzen"]
[Black "Cptn2"]
[Result "1-0"]
[WhiteElo "2778"]
[BlackElo "2496"]
[TimeControl "180+1"]
[EndTime "11:57:09 PST"]
[Termination "BahadirOzen won by resignation"]

1. g3 {[%clk 0:03:00.9]} 1... Nf6 {[%clk 0:02:58.1]} 2. Bg2 {[%clk 0:03:01.2]}
2... d5 {[%clk 0:02:59]} 3. d3 {[%clk 0:03:01.2]} 3... g6 {[%clk 0:02:58.5]} 4.
Nf3 {[%clk 0:03:01.2]} 4... Bg7 {[%clk 0:02:58.9]} 5. O-O {[%clk 0:03:02.1]}
5... O-O {[%clk 0:02:59.4]} 6. Nbd2 {[%clk 0:03:02.7]} 6... c5 {[%clk 0:03:00]}
7. e4 {[%clk 0:03:02]} 7... Nc6 {[%clk 0:03:00.5]} 8. Re1 {[%clk 0:03:01.3]}
8... dxe4 {[%clk 0:03:00.5]} 9. dxe4 {[%clk 0:03:01.3]} 9... Qc7 {[%clk
0:03:01.1]} 10. c3 {[%clk 0:03:01.4]} 10... Rd8 {[%clk 0:03:00.9]} 11. Qe2
{[%clk 0:03:00.8]} 11... b6 {[%clk 0:02:58.7]} 12. a4 {[%clk 0:02:51.7]} 12...
Bb7 {[%clk 0:02:53.6]} 13. e5 {[%clk 0:02:51.1]} 13... Nd5 {[%clk 0:02:53.3]}
14. e6 {[%clk 0:02:51.3]} 14... f6 {[%clk 0:02:53.7]} 15. h4 {[%clk 0:02:50.3]}
15... f5 {[%clk 0:02:36.4]} 16. h5 {[%clk 0:02:49.8]} 16... Nf6 {[%clk
0:02:36.7]} 17. hxg6 {[%clk 0:02:49.7]} 17... hxg6 {[%clk 0:02:37.6]} 18. Nh4
{[%clk 0:02:43.3]} 18... Kh7 {[%clk 0:02:34.6]} 19. Ndf3 {[%clk 0:02:40.6]}
19... Ne4 {[%clk 0:02:27.9]} 20. Ng5+ {[%clk 0:02:37]} 20... Nxg5 {[%clk
0:02:27.6]} 21. Bxg5 {[%clk 0:02:37.9]} 21... Ne5 {[%clk 0:02:23.5]} 22. Bf4
{[%clk 0:02:32]} 22... Bxg2 {[%clk 0:02:19.4]} 23. Nxg2 {[%clk 0:02:30.1]} 23...
Rd5 {[%clk 0:02:14.7]} 24. c4 {[%clk 0:02:27.4]} 24... g5 {[%clk 0:02:14.9]} 25.
cxd5 {[%clk 0:02:27.1]} 25... gxf4 {[%clk 0:02:14.3]} 26. Nxf4 {[%clk
0:02:25.1]} 26... Rh8 {[%clk 0:02:11.1]} 27. Kg2 {[%clk 0:02:23.9]} 27... Kg8
{[%clk 0:02:11]} 28. Rh1 {[%clk 0:02:24.4]} 28... Ng4 {[%clk 0:02:02.1]} 29.
Rxh8+ {[%clk 0:02:23.7]} 29... Bxh8 {[%clk 0:02:02.1]} 30. Rh1 {[%clk
0:02:22.3]} 30... Qe5 {[%clk 0:01:58.9]} 31. Qxe5 {[%clk 0:02:15.9]} 31... Bxe5
{[%clk 0:01:59.8]} 32. Ng6 {[%clk 0:02:10.7]} 32... Bd6 {[%clk 0:01:52]} 33. Nh4
{[%clk 0:02:08.2]} 33... Nh6 {[%clk 0:01:47.8]} 34. Nf3 {[%clk 0:01:45.8]} 34...
Kg7 {[%clk 0:01:46.1]} 35. a5 {[%clk 0:01:41.6]} 35... b5 {[%clk 0:01:38.3]} 36.
a6 {[%clk 0:01:41.2]} 36... Ng4 {[%clk 0:01:35.2]} 37. Rh5 {[%clk 0:01:37.1]}
37... Kg6 {[%clk 0:01:32]} 38. Rg5+ {[%clk 0:01:37.1]} 38... Kf6 {[%clk
0:01:32.5]} 39. Rg8 {[%clk 0:01:37.3]} 39... Ne5 {[%clk 0:01:30.9]} 40. Rf8+
{[%clk 0:01:35.7]} 40... Kg7 {[%clk 0:01:30.9]} 41. Ra8 {[%clk 0:01:35.8]} 41...
Nd3 {[%clk 0:01:26.6]} 42. Rxa7 {[%clk 0:01:35.6]} 42... Nxb2 {[%clk 0:01:22.1]}
43. Rxe7+ {[%clk 0:01:35.3]} 43... Bxe7 {[%clk 0:01:23]} 44. a7 {[%clk
0:01:35.7]} 1-0

[Event "*** Titled Tuesday Blitz"]
[Site "Chess.com"]
[Date "2021.03.09"]
[Round "10"]
[White "GM_LOADING"]
[Black "olksuna"]
[Result "0-1"]
[WhiteElo "2563"]
[BlackElo "2677"]
[TimeControl "180+1"]
[EndTime "11:57:13 PST"]
[Termination "olksuna won by resignation"]

1. d4 {[%clk 0:03:00.9]} 1... Nf6 {[%clk 0:02:59.9]} 2. Nf3 {[%clk 0:03:00.6]}
2... e6 {[%clk 0:03:00]} 3. Bg5 {[%clk 0:03:01]} 3... h6 {[%clk 0:02:58.1]} 4.
Bxf6 {[%clk 0:03:00]} 4... Qxf6 {[%clk 0:02:57.5]} 5. e4 {[%clk 0:03:00.3]} 5...
d6 {[%clk 0:02:55.1]} 6. Nbd2 {[%clk 0:02:59.3]} 6... e5 {[%clk 0:02:51.7]} 7.
dxe5 {[%clk 0:02:55.9]} 7... dxe5 {[%clk 0:02:51.3]} 8. Be2 {[%clk 0:02:49]}
8... Nd7 {[%clk 0:02:46.6]} 9. O-O {[%clk 0:02:48.8]} 9... Bc5 {[%clk
0:02:45.7]} 10. c3 {[%clk 0:02:49]} 10... a5 {[%clk 0:02:45]} 11. Qc2 {[%clk
0:02:48.9]} 11... O-O {[%clk 0:02:43.2]} 12. a4 {[%clk 0:02:46.5]} 12... Re8
{[%clk 0:02:34.9]} 13. Rad1 {[%clk 0:02:45.8]} 13... Nf8 {[%clk 0:02:31.6]} 14.
Rfe1 {[%clk 0:02:45]} 14... Ng6 {[%clk 0:02:31]} 15. Bf1 {[%clk 0:02:43.2]}
15... Nf4 {[%clk 0:02:23.5]} 16. g3 {[%clk 0:02:42.6]} 16... Nh3+ {[%clk
0:02:21]} 17. Bxh3 {[%clk 0:02:39.7]} 17... Bxh3 {[%clk 0:02:21.9]} 18. Qd3
{[%clk 0:02:32.6]} 18... Bg4 {[%clk 0:02:16.9]} 19. Qe2 {[%clk 0:02:32.5]} 19...
Rad8 {[%clk 0:02:12.3]} 20. Kg2 {[%clk 0:02:32.1]} 20... Qe6 {[%clk 0:02:07.8]}
21. Nc4 {[%clk 0:02:27.9]} 21... Rxd1 {[%clk 0:01:18.8]} 22. Rxd1 {[%clk
0:02:28.8]} 22... b6 {[%clk 0:01:11.5]} 23. Ne3 {[%clk 0:02:24.7]} 23... Bxe3
{[%clk 0:01:00.2]} 24. Qxe3 {[%clk 0:02:25.6]} 24... Qc4 {[%clk 0:00:57.6]} 25.
Rd5 {[%clk 0:02:21.5]} 25... f6 {[%clk 0:00:43.2]} 26. Qd3 {[%clk 0:02:01.7]}
26... Qxa4 {[%clk 0:00:39.1]} 27. Rd8 {[%clk 0:02:01.6]} 27... Rxd8 {[%clk
0:00:34.2]} 28. Qxd8+ {[%clk 0:02:02.5]} 28... Kh7 {[%clk 0:00:34.7]} 29. Nd2
{[%clk 0:02:01.9]} 29... Qd1 {[%clk 0:00:31.8]} 30. Qd5 {[%clk 0:01:57]} 30...
c6 {[%clk 0:00:27.5]} 31. Qd6 {[%clk 0:01:53.1]} 31... Bf3+ {[%clk 0:00:25.5]}
0-1

[Event "*** Titled Tuesday Blitz"]
[Site "Chess.com"]
[Date "2021.03.09"]
[Round "10"]
[White "Sergey85Rodchenkov"]
[Black "elcandado"]
[Result "1-0"]
[WhiteElo "2531"]
[BlackElo "2649"]
[TimeControl "180+1"]
[EndTime "11:57:22 PST"]
[Termination "Sergey85Rodchenkov won by checkmate"]

1. e4 {[%clk 0:03:00.9]} 1... e5 {[%clk 0:02:59.1]} 2. Nf3 {[%clk 0:03:00.7]}
2... Nc6 {[%clk 0:02:59]} 3. Bc4 {[%clk 0:03:01.1]} 3... Bc5 {[%clk 0:02:57.5]}
4. d3 {[%clk 0:03:01.4]} 4... Nf6 {[%clk 0:02:57]} 5. O-O {[%clk 0:03:01.1]}
5... O-O {[%clk 0:02:56.7]} 6. Re1 {[%clk 0:03:00.8]} 6... d6 {[%clk 0:02:50.3]}
7. c3 {[%clk 0:03:00.6]} 7... a6 {[%clk 0:02:46.2]} 8. Bg5 {[%clk 0:02:59.3]}
8... Ba7 {[%clk 0:02:33.4]} 9. Bb3 {[%clk 0:02:58.4]} 9... Re8 {[%clk
0:02:29.6]} 10. Nbd2 {[%clk 0:02:57.8]} 10... Be6 {[%clk 0:02:29.9]} 11. Bxe6
{[%clk 0:02:56.2]} 11... Rxe6 {[%clk 0:02:30.8]} 12. Nc4 {[%clk 0:02:54.4]}
12... h6 {[%clk 0:02:26]} 13. Bh4 {[%clk 0:02:53.9]} 13... g5 {[%clk 0:02:24.6]}
14. Bg3 {[%clk 0:02:53.9]} 14... Ne7 {[%clk 0:02:22.7]} 15. Ne3 {[%clk
0:02:47.2]} 15... Bxe3 {[%clk 0:02:04]} 16. Rxe3 {[%clk 0:02:46.7]} 16... Ng6
{[%clk 0:02:03.6]} 17. d4 {[%clk 0:02:44.7]} 17... exd4 {[%clk 0:01:38.9]} 18.
Qxd4 {[%clk 0:02:43.8]} 18... Qe7 {[%clk 0:01:34.1]} 19. Rae1 {[%clk 0:02:42.9]}
19... Re8 {[%clk 0:01:27.1]} 20. e5 {[%clk 0:02:39.6]} 20... dxe5 {[%clk
0:01:23]} 21. Nxe5 {[%clk 0:02:39]} 21... Nxe5 {[%clk 0:01:07.8]} 22. Rxe5
{[%clk 0:02:37.5]} 22... Rxe5 {[%clk 0:00:35.3]} 23. Rxe5 {[%clk 0:02:36.7]}
23... Qd8 {[%clk 0:00:26.3]} 24. Rxe8+ {[%clk 0:02:31.5]} 24... Qxe8 {[%clk
0:00:27.2]} 25. h4 {[%clk 0:02:28]} 25... Qe7 {[%clk 0:00:23.6]} 26. hxg5 {[%clk
0:02:27.4]} 26... hxg5 {[%clk 0:00:24.5]} 27. f3 {[%clk 0:02:25.5]} 27... c6
{[%clk 0:00:22.9]} 28. c4 {[%clk 0:02:24.4]} 28... Kg7 {[%clk 0:00:20.7]} 29.
Be5 {[%clk 0:02:22.7]} 29... Qe6 {[%clk 0:00:19.8]} 30. b3 {[%clk 0:02:21.2]}
30... Kg6 {[%clk 0:00:19.5]} 31. g4 {[%clk 0:02:17.4]} 31... Nd7 {[%clk
0:00:19]} 32. Qd3+ {[%clk 0:02:12.9]} 32... f5 {[%clk 0:00:18.4]} 33. Bc3 {[%clk
0:02:10.3]} 33... Nc5 {[%clk 0:00:14.5]} 34. Qd4 {[%clk 0:02:06.7]} 34... Nd7
{[%clk 0:00:09.9]} 35. Qg7# {[%clk 0:02:05.9]} 1-0